[Event "Doeberl Cup 2022"]
[Site "Canberra"]
[Date "2022.04.18"]
[Round "9.1"]
[White "Fernandez, Daniel Howard"]
[Black "Kuybokarov, Temur"]
[Result "1/2-1/2"]
[ECO "E60"]
[WhiteElo "2487"]
[BlackElo "2576"]
[Annotator "TA"]
[PlyCount "60"]
[EventDate "2022.04.14"]
[EventType "swiss"]
[EventCountry "AUS"]
[SourceTitle "playchess.com"]
[Source "ChessBase"]
[SourceQuality "1"]
[TimeControl "5400+30"]

{[%evp 9,60,12,11,4,20,20,23,30,24,0,0,0,0,0,-2,-32,-19,-29,-33,-42,0,0,0,0,0,0,0,0,0,0,0,0,0,0,0,0,0,0,0,0,0,0,0,0,0,0,0,0,0,0,0,0,0]} 1. d4 {[%emt 0:00:02]} Nf6 {[%emt 0:08:32]} 2. c4 {[%emt 0:00:03]} g6 {[%emt 0:00:09]} 3. h4 {[%emt 0:01:29]} c5 {[%emt 0:01:02]} 4. d5 {[%emt 0:00:14]} Bg7 {[%emt 0:00:23]} 5. Nc3 {[%emt 0:00:20]} d6 {[%emt 0:00:19]} 6. e4 {[%emt 0:03:31] E60: King's Indian: Unusual lines and Fianchetto Variation without Nc3.} e6 {[%emt 0:00:07]} 7. Be2 {[%emt 0:03:16]} exd5 {[%emt 0:00:12]} 8. exd5 {[%emt 0:00:08] White has an edge.} Nbd7 {[%emt 0:00:10]} 9. h5 {[%emt 0:05:31] [#]} Nxh5 $146 {[%emt 0:00:42]} ({Predecessor:} 9... O-O 10. Bf4 Re8 11. Bxd6 Qb6 12. Nb5 a6 13. Bc7 axb5 14. Bxb6 Nxb6 15. hxg6 hxg6 {0-1 (24) Borsuk,K (2401)-Janaszak,D (2348) Chess.com INT 2020}) 10. Bxh5 {[%emt 0:00:18]} gxh5 {[%emt 0:00:06]} 11. Qe2+ {[%emt 0:04:58]} Qe7 {[%emt 0:07:31]} 12. Bg5 {[%emt 0:08:03][%csl Gg5][%cal Re2e7][%mdl 64] [#] Pin} Bxc3+ {[%emt 0:24:33]} 13. bxc3 {[%emt 0:00:01][%csl Gg5][%cal Re2e7]} f6 {[%emt 0:02:29]} 14. Bf4 {[%emt 0:00:09] Bxd6 is the strong threat.} Qxe2+ {[%emt 0:02:41]} (14... Ne5 {is more complex.} 15. Bxe5 fxe5 16. Qxh5+ Kd7) 15. Nxe2 {[%emt 0:00:28][%cal Bg1e2,Be2g3,Bg3f5][%mdl 32] The position is equal.} Ke7 {[%emt 0:00:07]} 16. Rxh5 {[%emt 0:04:49]} Nb6 {[%emt 0:00:56]} 17. f3 {[%emt 0:00:04]} Bd7 $1 {[%emt 0:04:41][%cal Bc8d7,Bd7e8,Be8g6,Bg6d3,Bd3c2][%mdl 32]} 18. Ng3 {[%emt 0:00:03]} Nxc4 {[%emt 0:00:33]} 19. Kf2 {[%emt 0:00:10]} Be8 $1 {[%emt 0:02:25]} 20. Nf5+ {[%emt 0:00:15]} Kd7 {[%emt 0:00:12]} 21. Rh6 {[%emt 0:00:17]} Bg6 {[%emt 0:00:38]} 22. Nh4 {[%emt 0:00:15]} Bd3 {[%emt 0:04:05]} 23. Rd1 $1 {[%emt 0:00:21]} Bc2 {[%emt 0:00:17]} 24. Rc1 {[%emt 0:00:03]} Bd3 {[%emt 0:00:16]} 25. Rd1 {[%emt 0:00:19]} Bc2 {[%emt 0:00:31]} 26. Rc1 {[%emt 0:00:03]} Bd3 {[%emt 0:05:19]} 27. Rd1 {[%emt 0:00:03]} Bc2 {[%emt 0:00:11]} 28. Rc1 {[%emt 0:00:04]} Bd3 {[%emt 0:00:03]} 29. Rd1 {[%emt 0:00:07]} Bc2 {[%emt 0:00:16]} 30. Rc1 {[%emt 0:00:08]} Bd3 {[%emt 0:00:11] Weighted Error Value: White=0.02 (flawless) /Black=0.02 (flawless)} 1/2-1/2

[Event "Doeberl Cup 2022"]
[Site "Canberra"]
[Date "2022.04.18"]
[Round "9.2"]
[White "Bjelobrk, Igor"]
[Black "Melkumyan, Hrant"]
[Result "0-1"]
[ECO "D94"]
[WhiteElo "2403"]
[BlackElo "2649"]
[Annotator "TA"]
[PlyCount "98"]
[EventDate "2022.04.14"]
[EventType "swiss"]
[EventCountry "AUS"]
[SourceTitle "playchess.com"]
[Source "ChessBase"]
[SourceQuality "1"]
[TimeControl "5400+30"]

{[%evp 18,98,11,-6,0,-14,-18,-16,-25,-15,-15,-25,-23,-49,-51,-47,-46,-60,-18,-33,-24,-64,0,-24,-24,-22,-18,-30,-26,-32,-18,-55,-11,-127,-124,-135,-140,-113,-73,-68,-22,-22,0,-4,34,-687,112,103,103,125,379,380,350,340,377,342,315,191,241,231,177,69,67,22,22,22,22,22,22,22,21,21,148,0,0,0,0,0,0,0,0,-29996,-29997]} 1. Nf3 {[%emt 0:00:03]} c5 {[%emt 0:02:55]} 2. e3 {[%emt 0:01:57]} d5 {[%emt 0:00:56]} 3. d4 {[%emt 0:00:31]} Nf6 {[%emt 0:01:06]} 4. c4 {[%emt 0:02:46]} cxd4 {[%emt 0:01:53]} 5. exd4 {[%emt 0:00:30]} g6 {[%emt 0:00:30]} 6. Nc3 {[%emt 0:00:30]} Bg7 {[%emt 0:00:30]} 7. Be2 {[%emt 0:00:30]} O-O {[%emt 0:00:30]} 8. O-O {[%emt 0:00:30]} Nc6 {[%emt 0:00:30]} 9. Re1 {[%emt 0:04:01]} Be6 {[%emt 0:09:48]} 10. c5 {[%emt 0:00:30]} Ne4 {[%emt 0:00:30] D94: Grünfeld: 4 Nf3 Bg7 5 e3.} 11. Bf4 {[%emt 0:00:30]} Bg4 {[%emt 0:00:30]} 12. Rc1 {[%emt 0:00:30]} Bxf3 {[%emt 0:00:30] The position is equal.} 13. Bxf3 {[%emt 0:00:30]} f5 {[%emt 0:00:30] [#]} 14. Ne2 $146 {[%emt 0:00:30]} ({Predecessor:} 14. Be3 Rc8 15. g3 g5 16. Bg2 f4 17. Nxe4 fxe3 18. fxe3 dxe4 19. Bxe4 Rf6 20. b4 {1-0 (41) Lilleeng,A (2111)-Sterud,E (2207) ICCF email 2010}) 14... e6 {[%emt 0:00:30]} 15. Bxe4 {[%emt 0:00:30]} fxe4 {[%emt 0:00:30]} 16. Be3 {[%emt 0:00:30]} Rf7 {[%emt 0:00:30]} 17. a3 {[%emt 0:00:30]} Qh4 {[%emt 0:00:30]} 18. Qd2 {[%emt 0:00:30]} Raf8 {[%emt 0:00:30][%cal Rf7f2]} 19. Rf1 {[%emt 0:00:30]} Qd8 {[%emt 0:00:30] &Nero is much more active.} (19... e5 {seems wilder.} 20. Rcd1 exd4 21. Bxd4 Be5) 20. b4 {[%emt 0:00:30]} a6 {[%emt 0:00:30]} 21. Rcd1 {[%emt 0:00:30]} Ne7 {[%emt 0:00:30]} 22. Ng3 {[%emt 0:00:30]} h5 {[%emt 0:00:30]} 23. Bg5 {[%emt 0:00:30]} Qd7 {[%emt 0:00:30]} 24. Qe3 {[%emt 0:00:30]} Kh7 {[%emt 0:00:30]} 25. h4 {[%emt 0:00:30]} (25. f3 $11) 25... Nc6 $17 {[%emt 0:00:30]} 26. f4 {[%emt 0:00:30]} exf3 $1 {[%emt 0:00:30]} 27. Rxf3 {[%emt 0:00:30]} Rxf3 {[%emt 0:00:30]} 28. gxf3 {[%emt 0:00:30][%cal Bg2f3,Bf3f4][%mdl 32]} e5 {[%emt 0:00:30]} (28... Qf7 $1 $15 {might be stronger.} 29. f4 Bf6) 29. dxe5 $11 {[%emt 0:00:30] Hoping for e6.} Nxe5 {[%emt 0:00:30]} 30. f4 {[%emt 0:00:30]} Nf7 {[%emt 0:00:30]} 31. Qd3 $2 {[%emt 0:00:30][%mdl 8192]} (31. f5 $14 gxf5 32. Nxh5) 31... Nh6 $2 {[%emt 0:00:30]} (31... Nxg5 $19 32. hxg5 Rxf4) 32. Qxd5 $16 {[%emt 0:00:30]} Qg4 {[%emt 0:00:30]} 33. Rd3 {[%emt 0:00:30]} Re8 $2 {[%emt 0:00:30][%mdl 8192]} (33... Nf5 $16) 34. Bxh6 $18 {[%emt 0:00:30]} ({Inferior is} 34. Qxb7 Nf5 35. Bf6 Qxf4 36. Bxg7 (36. Nxf5 Re1+ 37. Kg2 Re2+ 38. Kg1 Qh2+ 39. Kf1 Qf2#) 36... Re1+ 37. Kg2 Nxh4+ 38. Kh3 Qg4+ 39. Kh2 Re2+ 40. Nxe2 Qxe2+ 41. Kg3 (41. Kh3 Qg4+ 42. Kh2 Qe2+ 43. Kg3 Nf5+ 44. Kf4 Qh2+ 45. Ke4 Qe2+ 46. Kf4 Qh2+ 47. Ke4 Qe2+ 48. Kf4 $11) (41. Kg1 Qe1+ 42. Kh2 Qe2+ 43. Kh3 Qg4+ 44. Kh2 Qe2+ $11) 41... Nf5+ 42. Kf4 Qh2+ 43. Ke4 Qe2+ 44. Kf4 Qh2+ 45. Ke4 Qe2+ 46. Kf4 $11) 34... Kxh6 {[%emt 0:00:30]} 35. Qg5+ {[%emt 0:00:30]} ({But not} 35. Qxb7 $2 Bd4+ $1 {[%mdl 512]} 36. Kh2 Re2+ $1 {[%mdl 512]} 37. Nxe2 Qxe2+ 38. Qg2 Qxd3 39. Qg5+ Kh7 40. Qe7+ Bg7 $19) 35... Kh7 {[%emt 0:00:30]} 36. Qxg4 {[%emt 0:00:30]} hxg4 {[%emt 0:00:30][%mdl 4096] Endgame KRB-KRN} 37. Kf2 {[%emt 0:00:30] Rd7 is the strong threat.} Bf6 {[%emt 0:00:30]} (37... Re7 {keeps fighting.} 38. Nf1 Re4) 38. Rd7+ {[%emt 0:00:30]} Kh6 {[%emt 0:00:30] [#]} 39. Rxb7 {[%emt 0:00:30]} (39. h5 $1 $18) 39... Bxh4 $14 {[%emt 0:00:30]} 40. Rb6 {[%emt 0:00:30]} (40. c6 {is interesting.} Re4 41. c7 Rc4 42. Rb8) 40... Rf8 {[%emt 0:00:30]} 41. Rxa6 {[%emt 0:00:30] Strongly threatening Kg2.} Rxf4+ {[%emt 0:00:30]} 42. Kg2 {[%emt 0:00:30]} Rf3 $1 {[%emt 0:00:30]} 43. Nf1 {[%emt 0:00:30]} Rf2+ {[%emt 0:00:30]} 44. Kg1 {[%emt 0:00:30]} Rc2 {[%emt 0:00:30] [#]} (44... Ra2 $1 $11 {keeps the balance.}) 45. c6 {[%emt 0:00:30]} ({White should try} 45. Rd6 $1 $16) 45... Bf2+ $11 {[%emt 0:00:30]} 46. Kh1 $1 {[%emt 0:00:30]} Bd4 {[%emt 0:00:30]} 47. b5 {[%emt 0:00:30] Black must now prevent Ra4.} Rc1 {[%emt 0:00:30]} 48. Kg2 {[%emt 0:00:30] And now Ra4 would win.} Rc2+ {[%emt 0:00:30]} 49. Kg3 $2 {[%emt 0:00:30][%mdl 8192]} (49. Kh1 $11 Rc1 50. Kg2 Rc2+ 51. Kh1 (51. Kg3 {gets mated.} Kg5)) 49... Kg5 {[%emt 0:00:30] Weighted Error Value: White=0.47/Black=0.43} 0-1

[Event "Doeberl Cup 2022"]
[Site "Canberra"]
[Date "2022.04.18"]
[Round "9.3"]
[White "Lane, Gary W"]
[Black "Cheng, Bobby"]
[Result "1/2-1/2"]
[ECO "B12"]
[WhiteElo "2332"]
[BlackElo "2550"]
[Annotator "TA"]
[PlyCount "104"]
[EventDate "2022.04.14"]
[EventType "swiss"]
[EventCountry "AUS"]
[SourceTitle "playchess.com"]
[Source "ChessBase"]
[SourceQuality "1"]
[TimeControl "5400+30"]

{[%evp 9,104,10,0,10,29,27,31,29,39,14,2,16,31,0,0,0,0,0,0,-6,10,16,14,-11,-14,-22,-22,-48,-33,-48,-68,-64,-56,-76,-76,-99,-77,-97,-102,-111,-94,-162,-85,-84,-29,-75,-58,-32,-36,-38,-42,-43,-41,-53,-49,-41,-8,-213,-204,-233,-237,-228,-235,-165,-41,-115,-65,-65,-72,-71,-35,-35,0,0,0,-54,0,0,0,0,0,0,0,0,0,0,0,0,0,0,0,0,0,0,0,0,0]} 1. e4 {[%emt 0:00:02]} c6 {[%emt 0:00:05]} 2. d4 {[%emt 0:00:34]} d5 {[%emt 0:00:04]} 3. e5 {[%emt 0:00:03]} c5 {[%emt 0:00:04]} 4. dxc5 {[%emt 0:01:43]} e6 {[%emt 0:00:04]} 5. a3 {[%emt 0:00:09]} Bxc5 {[%emt 0:00:10]} 6. Nf3 {[%emt 0:00:55] B12: Caro-Kann: Advance Variation.} a6 {[%emt 0:00:23]} 7. Bd3 {[%emt 0:01:56]} Nc6 {[%emt 0:00:10]} 8. b4 {[%emt 0:00:09] White is slightly better.} Ba7 {[%emt 0:00:05]} 9. O-O {[%emt 0:00:23]} Nge7 {[%emt 0:00:10][%cal Bg8e7,Be7g6,Bg6f4][%mdl 32]} 10. Bb2 {[%emt 0:02:57]} Ng6 {[%emt 0:00:06]} 11. Re1 {[%emt 0:01:23]} O-O {[%emt 0:04:13]} 12. Nbd2 {[%emt 0:33:19]} Qb6 {[%emt 0:00:31]} 13. Rf1 {[%emt 0:03:04] Active counter play!} Nf4 {[%emt 0:01:41]} 14. Nb3 {[%emt 0:01:32]} Qd8 {[%emt 0:00:05]} 15. Qd2 {[%emt 0:06:01]} Nxd3 {[%emt 0:00:06] [#]} 16. Qxd3 $146 {[%emt 0:00:04]} ({Predecessor:} 16. cxd3 d4 17. Qf4 f6 18. exf6 Rxf6 19. Qe4 e5 20. Nxe5 Bf5 21. Nxc6 bxc6 22. Qe5 Bxd3 23. Rfe1 Bc4 24. Nc5 Bxc5 25. bxc5 {½-½ (102) Kravtsiv,M (2625)-Bartel,M (2597) Riga 2021}) 16... Bd7 {[%emt 0:09:49]} 17. Rfe1 {[%emt 0:05:32]} Rc8 {[%emt 0:03:12]} 18. Rad1 {[%emt 0:09:50]} Rc7 {[%emt 0:06:18]} 19. Qd2 {[%emt 0:06:42]} Qe7 {[%emt 0:10:58]} 20. Qf4 {[%emt 0:01:59]} Rfc8 {[%emt 0:00:21]} 21. Rd2 {[%emt 0:04:56]} Qf8 {[%emt 0:06:51]} 22. g4 {[%emt 0:02:20]} Bb6 {[%emt 0:07:25]} 23. h4 {[%emt 0:07:27]} Na7 {[%emt 0:06:02]} 24. Bd4 {[%emt 0:03:07]} Rc4 {[%emt 0:00:05]} 25. Qg3 {[%emt 0:00:15]} (25. Qe3 $17 Bxd4 26. Nfxd4) 25... Bxd4 {[%emt 0:01:35]} ({Better is} 25... Qd8 $1 $19 26. Bxb6 Qxb6) 26. Nfxd4 $17 {[%emt 0:00:26]} b6 {[%emt 0:00:06]} (26... Ba4 $17) 27. f4 {[%emt 0:01:27]} (27. Rd3 $11) 27... Nb5 {[%emt 0:08:39]} (27... a5 $5 28. bxa5 bxa5 29. Nxa5 Rc3 $17) 28. Nxb5 {[%emt 0:00:23]} Bxb5 {[%emt 0:00:05][%cal Bd7b5,Bb5a4,Ba4c2,Bc2e4][%mdl 32]} 29. Nd4 {[%emt 0:00:08]} Ba4 {[%emt 0:00:03][%cal Ra4c2]} 30. f5 $1 {[%emt 0:01:05]} Bxc2 {[%emt 0:07:28] And now ...Qe7 would win.} 31. fxe6 {[%emt 0:00:14]} fxe6 {[%emt 0:00:03]} 32. Nxe6 {[%emt 0:00:23]} Qe7 {[%emt 0:07:44]} 33. Nd4 {[%emt 0:02:35]} (33. Nf4 $11 {and White has nothing to worry.}) 33... Rc3 $1 $19 {[%emt 0:07:27]} 34. Re3 {[%emt 0:01:34]} Rxe3 {[%emt 0:00:25]} 35. Qxe3 {[%emt 0:00:02]} Be4 {[%emt 0:00:05]} 36. Qg5 {[%emt 0:02:56] [#]} Rc1+ {[%emt 0:04:15]} (36... Qc7 $1 $19 {[%cal Rc7c1] White must now prevent ...Qc1+.} 37. Rf2 h6) 37. Kh2 {[%emt 0:00:20]} (37. Kf2 $1 $15 Qc7 38. Ne6) 37... Qc7 {[%emt 0:02:08]} (37... Rh1+ $17 38. Kg3 Rg1+ 39. Kf2 Qxg5 40. hxg5 Rxg4) 38. Rf2 $1 $15 {[%emt 0:00:57][%cal Of2f8] Rf8+! is the strong threat.} h6 {[%emt 0:03:21]} 39. Qf4 {[%emt 0:00:07]} Rh1+ {[%emt 0:04:50]} (39... Qe7 $5 40. Nf5 {[#]} Bxf5 $1 41. gxf5 Rc4 $15) 40. Kg3 {[%emt 0:00:01]} Rg1+ {[%emt 0:01:53]} 41. Kh2 {[%emt 0:00:03]} Rh1+ {[%emt 0:01:10]} 42. Kg3 {[%emt 0:00:06]} Rg1+ {[%emt 0:00:31]} ({Black should play} 42... Qc3+ $15 43. Nf3 Qc8) 43. Kh2 $11 {[%emt 0:00:08] The position is equal.} Re1 {[%emt 0:00:39]} ({Of course not} 43... Rh1+ 44. Kg3 $15) 44. e6 {[%emt 0:01:07]} Rh1+ {[%emt 0:00:24]} 45. Kg3 {[%emt 0:00:02]} Rg1+ {[%emt 0:00:28]} 46. Kh2 {[%emt 0:00:02] Dancing on a razor blade.} Rh1+ {[%emt 0:00:28]} 47. Kg3 {[%emt 0:00:02]} Rg1+ {[%emt 0:00:26]} 48. Kh2 {[%emt 0:00:06]} Rh1+ {[%emt 0:00:45]} 49. Kg3 {[%emt 0:00:02]} Rg1+ {[%emt 0:00:19]} 50. Kh2 {[%emt 0:00:05]} Rh1+ {[%emt 0:00:40]} 51. Kg3 {[%emt 0:00:13]} Rg1+ {[%emt 0:00:29]} 52. Kh2 {[%emt 0:00:06]} Rh1+ {[%emt 0:00:29] White happily takes the draw.  Weighted Error Value: White=0.20 (precise) /Black=0.13 (very precise)} 1/2-1/2

[Event "Doeberl Cup 2022"]
[Site "Canberra"]
[Date "2022.04.18"]
[Round "9.4"]
[White "Sardana, Rishi"]
[Black "Litchfield, Frederick"]
[Result "1-0"]
[ECO "D93"]
[WhiteElo "2461"]
[BlackElo "2096"]
[Annotator "TA"]
[PlyCount "52"]
[EventDate "2022.04.14"]
[EventType "swiss"]
[EventCountry "AUS"]
[SourceTitle "playchess.com"]
[Source "ChessBase"]
[SourceQuality "1"]
[TimeControl "5400+30"]

{[%evp 16,52,11,5,33,33,50,39,45,48,41,39,41,50,48,51,64,57,74,76,72,73,74,59,83,83,144,126,130,115,115,104,115,108,107,85,116,107,108]} 1. Nf3 {[%emt 0:00:11]} Nf6 {[%emt 0:02:24]} 2. d4 {[%emt 0:00:18]} d5 {[%emt 0:00:30]} 3. c4 {[%emt 0:00:08]} c6 {[%emt 0:00:23]} 4. Qc2 {[%emt 0:00:18]} g6 {[%emt 0:00:43]} 5. Bf4 {[%emt 0:00:25]} Bg7 {[%emt 0:03:05]} 6. e3 {[%emt 0:00:06]} O-O {[%emt 0:02:08]} 7. Nc3 {[%emt 0:02:35]} Bf5 {[%emt 0:17:57]} 8. Bd3 {[%emt 0:04:49]} Bxd3 {[%emt 0:01:09]} 9. Qxd3 {[%emt 0:00:06]} dxc4 {[%emt 0:00:31] D93: Grünfeld: 4 Nf3 Bg7 5 Bf4 0-0 6 e3.} 10. Qxc4 {[%emt 0:00:07]} Nbd7 {[%emt 0:00:08]} 11. O-O {[%emt 0:02:21]} Nb6 {[%emt 0:03:30] White is slightly better.} 12. Qb3 {[%emt 0:00:43]} Nfd5 {[%emt 0:01:21]} 13. Be5 {[%emt 0:09:17]} Nxc3 {[%emt 0:00:32]} 14. bxc3 {[%emt 0:06:32][%cal Bb2c3,Bc3c4][%mdl 32]} Qd5 {[%emt 1:03:09] [#]} 15. Rfb1 $146 {[%emt 0:03:13]} ({Predecessor:} 15. Bxg7 Kxg7 16. Rfc1 Qxb3 17. axb3 Rfd8 18. c4 a6 19. Kf1 Rac8 20. Ke2 f6 21. Rd1 Kf7 {½-½ (21) Kukhmazov,A (2393)-Deviatkin,A (2508) Moscow 2016}) 15... Bxe5 {[%emt 0:00:00]} 16. Nxe5 {[%emt 1:07:21][%cal Bf3e5,Be5d3,Bd3c5][%mdl 32]} f6 {[%emt 0:01:00] [#]} 17. c4 $1 {[%emt 0:00:00]} Qe6 {[%emt 0:00:00]} 18. Nd3 {[%emt 0:00:00]} Rab8 {[%emt 0:00:00]} 19. Rc1 {[%emt 0:00:00]} Rfd8 {[%emt 0:00:00]} 20. Rab1 {[%emt 0:00:00]} Kg7 {[%emt 0:00:00] [#]} ({Better is} 20... Nd7) 21. Nc5 $1 $16 {[%emt 0:00:00]} Qf7 {[%emt 0:00:00] White is better.} 22. a4 {[%emt 0:00:00]} Na8 {[%emt 0:00:00]} 23. Qc3 {[%emt 0:00:00] &Bianco is more active.} ({But not} 23. Nxb7 $6 Rd7 24. a5 a6 $11) 23... b6 {[%emt 0:00:00]} 24. Nd3 {[%emt 0:00:00]} Nc7 {[%emt 0:00:00]} 25. h3 {[%emt 0:00:00]} e6 {[%emt 0:00:00]} 26. Rd1 {[%emt 0:00:00]} Qe7 {[%emt 0:00:00] Weighted Error Value: White=0.05 (flawless) /Black=0.11 (very precise)} 1-0

[Event "Doeberl Cup 2022"]
[Site "Canberra"]
[Date "2022.04.18"]
[Round "9.5"]
[White "Puccini, Jack"]
[Black "Ikeda, Junta"]
[Result "1/2-1/2"]
[ECO "C01"]
[WhiteElo "2313"]
[BlackElo "2457"]
[Annotator "TA"]
[PlyCount "51"]
[EventDate "2022.04.14"]
[EventType "swiss"]
[EventCountry "AUS"]
[SourceTitle "playchess.com"]
[Source "ChessBase"]
[SourceQuality "1"]
[TimeControl "5400+30"]

{[%evp 11,51,22,22,22,11,0,0,5,18,6,83,0,0,0,0,0,0,0,30,19,41,-15,0,0,0,0,0,0,0,0,0,0,0,0,0,0,0,0,0,0,0,0]} 1. e4 {[%emt 0:00:03]} e6 {[%emt 0:00:09]} 2. d4 {[%emt 0:00:19]} d5 {[%emt 0:00:04]} 3. Nc3 {[%emt 0:00:04]} Bb4 {[%emt 0:00:11]} 4. exd5 {[%emt 0:04:25]} exd5 {[%emt 0:00:36]} 5. Bd3 {[%emt 0:00:05]} Ne7 {[%emt 0:04:39]} 6. Nf3 {[%emt 0:01:48]} Bg4 {[%emt 0:02:31][%cal Bc8g4,Bg4h5,Bh5g6][%mdl 32]} 7. O-O {[%emt 0:01:58] C01: French: Exchange Variation.} Nbc6 {[%emt 0:02:52][%cal Oc6d4]} 8. h3 {[%emt 0:00:35]} Bh5 {[%emt 0:01:56][%cal Oc6d4]} 9. a3 {[%emt 0:01:41]} Ba5 {[%emt 0:03:33][%cal Oc6d4]} 10. Re1 {[%emt 0:04:49]} Qd7 {[%emt 0:09:21] [#]} (10... Nxd4 $11 {keeps the balance.} 11. g4 Bxc3 12. bxc3 Nxf3+ 13. Qxf3 Bg6) 11. g4 {[%emt 0:14:08] [#] &Bianco is more active.} (11. b4 $1 $16 {[%cal Rb4a5]} Bb6 12. g4 Bxg4 13. hxg4 Qxg4+ 14. Kh1) 11... Bxc3 $146 {[%emt 0:12:05]} ({Predecessor:} 11... Bg6 12. b4 Bb6 13. Bb5 f6 14. a4 a6 15. Bxc6 Qxc6 16. Qd2 Qd7 17. Ba3 O-O {0-1 (32) Zemlicka,V (1935)-Liu,Z (2328) Prague 2020}) 12. bxc3 {[%emt 0:00:15]} Bg6 {[%emt 0:00:05] Prevents Bf5.} 13. Bb5 {[%emt 0:06:32] And now Ne5 would win.} f6 {[%emt 0:08:04] Against Ne5} 14. a4 {[%emt 0:10:03] aiming for Ba3.} Kf7 {[%emt 0:15:39]} 15. Ba3 {[%emt 0:07:48][%cal Oe1e7] [#] Rxe7+! is the strong threat.} Rae8 {[%emt 0:03:14]} (15... Be4 $2 16. Nd2 Rhe8 17. Nxe4 dxe4 18. Rxe4 $18) 16. c4 {[%emt 0:07:39]} (16. Qd2 $14) 16... a6 {[%emt 0:11:38] The position is equal.} (16... h5 {seems wilder.} 17. Nh4 Be4 18. cxd5 Nxd5 19. f3 Bh7) 17. cxd5 {[%emt 0:01:44]} axb5 {[%emt 0:05:47]} 18. dxc6 {[%emt 0:00:07]} bxc6 {[%emt 0:02:35]} 19. axb5 {[%emt 0:01:14]} ({Of course not} 19. Qe2 Nd5 20. Qd2 h5 $17) 19... cxb5 {[%emt 0:03:34]} 20. Bxe7 {[%emt 0:26:44]} ({Much weaker is} 20. Qe2 Nd5 21. Qd2 h5 $17) 20... Rxe7 {[%emt 0:00:04]} 21. Ng5+ {[%emt 0:00:16]} fxg5 {[%emt 0:08:19]} 22. Qf3+ {[%emt 0:00:09]} Kg8 {[%emt 0:00:20] White must now prevent ...Rxe1+.} 23. Qb3+ {[%emt 0:01:50]} Kf8 {[%emt 0:00:35]} 24. Qf3+ {[%emt 0:00:26]} Kg8 {[%emt 0:00:28] Strongly threatening ...Rxe1+.} 25. Qb3+ {[%emt 0:03:38]} Kf8 {[%emt 0:00:08]} 26. Qf3+ {[%emt 0:00:09] Weighted Error Value: White=0.10 (very precise) /Black=0.12 (very precise)} 1/2-1/2

[Event "Doeberl Cup 2022"]
[Site "Canberra"]
[Date "2022.04.18"]
[Round "9.6"]
[White "Kargosha, Bahman"]
[Black "Winkelman, Albert"]
[Result "1/2-1/2"]
[ECO "D90"]
[WhiteElo "2084"]
[BlackElo "2257"]
[Annotator "TA"]
[PlyCount "60"]
[EventDate "2022.04.14"]
[EventType "swiss"]
[EventCountry "AUS"]
[SourceTitle "playchess.com"]
[Source "ChessBase"]
[SourceQuality "1"]
[TimeControl "5400+30"]

{[%evp 14,60,45,30,29,33,19,9,29,32,27,12,14,12,7,4,25,12,21,30,42,45,53,70,53,0,0,0,0,0,0,0,4,0,0,0,0,0,0,0,0,0,0,0,0,-1,0,0,0]} 1. d4 {[%emt 0:00:03]} Nf6 {[%emt 0:00:13]} 2. c4 {[%emt 0:00:08]} g6 {[%emt 0:00:09]} 3. Nc3 {[%emt 0:00:06]} d5 {[%emt 0:00:05]} 4. cxd5 {[%emt 0:00:07]} Nxd5 {[%emt 1:32:03]} 5. e4 Nxc3 {[%emt 0:00:00]} 6. bxc3 {[%emt 0:00:39]} Bg7 {[%emt 0:00:00]} 7. Qa4+ {[%emt 0:00:00] 7.Nf3 is becoming the main line.} c6 {[%emt 0:00:00]} 8. Nf3 {[%emt 0:00:20]} O-O {[%emt 0:00:00][%cal Oc6c5] D90: Grünfeld: 4 Nf3 Bg7 sidelines.} 9. Be2 {[%emt 0:00:07]} c5 {[%emt 0:00:00]} 10. O-O {[%emt 0:00:22]} b6 {[%emt 0:00:00] [#]} (10... Nc6 $5 {[%cal Rc5d4]}) 11. Rb1 $146 {[%emt 0:21:08]} ({Predecessor:} 11. Ba3 Bb7 12. dxc5 Qc7 13. Nd4 bxc5 14. Nb5 Qe5 15. f4 Qxe4 16. Qxe4 Bxe4 17. Nc7 Bxc3 {1-0 (24) Zhukova,N (2459)-Batchimeg,T (2340) Khanty-Mansiysk 2014}) 11... Bb7 {[%emt 0:00:00]} 12. dxc5 {[%emt 0:00:59]} Qc7 {[%emt 0:00:00]} 13. Be3 {[%emt 0:03:54]} Nd7 {[%emt 0:00:00]} 14. Qb4 {[%emt 0:05:40][%cal Rc5b6]} Rfc8 {[%emt 0:00:00][%cal Rd7c5,Bf8c8,Bc8c7,Bc7c3][%mdl 32]} 15. cxb6 {[%emt 0:03:42]} axb6 {[%emt 0:00:00]} 16. Qxe7 {[%emt 0:17:50]} Rxa2 {[%emt 0:06:00] [#] Threatens to win with ...Bf8.} 17. Ng5 $1 {[%emt 0:12:04]} Nf8 {[%emt 0:00:00]} (17... Rxe2 $2 18. Qxf7+ Kh8 19. Ne6 $18) (17... Ne5 18. Qxc7) 18. Qxc7 {[%emt 0:01:29] Dancing on a razor blade.} Rxc7 {[%emt 0:00:00]} 19. Bxb6 {[%emt 0:01:07]} Rxc3 $11 {[%emt 0:00:00] The position is equal.} 20. Be3 {[%emt 0:06:11]} Ba8 {[%emt 0:02:00]} 21. Bf3 {[%emt 0:09:54]} h6 {[%emt 0:00:00]} 22. Nh3 {[%emt 0:00:11]} Ra4 {[%emt 0:00:00]} 23. Rfc1 {[%emt 0:00:38]} Rxc1+ {[%emt 0:00:00]} 24. Rxc1 {[%emt 0:00:05]} Bxe4 {[%emt 0:00:00]} 25. Bxe4 {[%emt 0:00:15]} Rxe4 {[%emt 0:00:00]} 26. Nf4 {[%emt 0:00:33]} h5 {[%emt 0:03:00]} 27. Nd3 {[%emt 0:01:02]} Ne6 {[%emt 0:00:00]} 28. Nc5 {[%emt 0:00:47]} Nxc5 {[%emt 0:00:00]} 29. Rxc5 {[%emt 0:00:30]} Ra4 {[%emt 0:00:00]} 30. Rc1 {[%emt 0:00:23]} Be5 {[%emt 0:00:00] Weighted Error Value: White=0.04 (flawless) /Black=0.04 (flawless)} 1/2-1/2